[Event "Titled Tuesday Blitz April 05 Late 2022"]
[White "Fedoseev, Vladimir"]
[Black "Andreikin, Dmitry"]
[WhiteFideId "24130737"]
[BlackFideId "4158814"]
[WhiteElo "2726"]
[BlackElo "2736"]
[Result "0-1"]
[Round "08"]
[TimeControl "180+1"]
[Date "2022.04.05"]
[WhiteClock "0:00:07"]
[BlackClock "0:00:43"]

1. d4 {[%clk 0:03:00]}  d5 {[%clk 0:03:00]} 2. Bf4 {[%clk 0:03:00]}  Nf6 {[%clk 0:03:01]} 3. e3 {[%clk 0:03:00]}  c5 {[%clk 0:02:59]} 4. c3 {[%clk 0:03:01]}  e6 {[%clk 0:02:54]} 5. Nf3 {[%clk 0:03:00]}  Bd6 {[%clk 0:02:53]} 6. Bg3 {[%clk 0:02:58]}  O-O {[%clk 0:02:52]} 7. Bd3 {[%clk 0:02:58]}  Qc7 {[%clk 0:02:50]} 8. Ne5 {[%clk 0:02:56]}  Nbd7 {[%clk 0:02:47]} 9. f4 {[%clk 0:02:54]}  Ne4 {[%clk 0:02:47]} 10. Nd2 {[%clk 0:02:45]}  f5 {[%clk 0:02:43]} 11. Bh4 {[%clk 0:02:39]}  c4 {[%clk 0:02:38]} 12. Bxe4 {[%clk 0:02:13]}  fxe4 {[%clk 0:02:36]} 13. O-O {[%clk 0:02:11]}  b5 {[%clk 0:02:35]} 14. Qg4 {[%clk 0:01:54]}  Nf6 {[%clk 0:02:34]} 15. Qh3 {[%clk 0:01:51]}  b4 {[%clk 0:02:32]} 16. g4 {[%clk 0:01:42]}  bxc3 {[%clk 0:02:23]} 17. bxc3 {[%clk 0:01:42]}  Qa5 {[%clk 0:02:23]} 18. g5 {[%clk 0:01:42]}  Nh5 {[%clk 0:02:16]} 19. g6 {[%clk 0:01:37]}  Qxc3 {[%clk 0:01:56]} 20. Rad1 {[%clk 0:01:09]}  Rf5 {[%clk 0:01:39]} 21. gxh7+ {[%clk 0:00:57]}  Kxh7 {[%clk 0:01:40]} 22. Bg5 {[%clk 0:00:37]}  g6 {[%clk 0:01:40]} 23. Nexc4 {[%clk 0:00:36]}  dxc4 {[%clk 0:01:28]} 24. Nxe4 {[%clk 0:00:36]}  Qa3 {[%clk 0:01:29]} 25. Rb1 {[%clk 0:00:22]}  Rb8 {[%clk 0:01:11]} 26. Qf3 {[%clk 0:00:18]}  Rxb1 {[%clk 0:01:04]} 27. Rxb1 {[%clk 0:00:19]}  Bxf4 {[%clk 0:01:03]} 28. Bxf4 {[%clk 0:00:17]}  Nxf4 {[%clk 0:00:59]} 29. Kh1 {[%clk 0:00:09]}  Nh5 {[%clk 0:00:51]} 30. Qe2 {[%clk 0:00:10]}  Qd3 {[%clk 0:00:48]} 31. Qxd3 {[%clk 0:00:10]}  cxd3 {[%clk 0:00:49]} 32. Nd6 {[%clk 0:00:10]}  Rf8 {[%clk 0:00:46]} 33. Kg2 {[%clk 0:00:11]}  Ba6 {[%clk 0:00:45]} 34. Rb2 {[%clk 0:00:09]}  Nf6 {[%clk 0:00:44]} 35. e4 {[%clk 0:00:09]}  Rd8 {[%clk 0:00:43]} 36. e5 {[%clk 0:00:09]}  Ne8 {[%clk 0:00:43]} 37. Nf7 {[%clk 0:00:07]}  Rxd4 {[%clk 0:00:43]} 38. Rd2 {[%clk 0:00:06]}  Kg7 {[%clk 0:00:42]} 39. Nd6 {[%clk 0:00:04]}  Nxd6 {[%clk 0:00:42]} 40. exd6 {[%clk 0:00:05]}  Rxd6 {[%clk 0:00:42]} 41. Kf3 {[%clk 0:00:06]}  Kf6 {[%clk 0:00:42]} 42. Ke3 {[%clk 0:00:07]}  e5 {[%clk 0:00:43]} 43. h4 {[%clk 0:00:07]}  Ke6 {[%clk 0:00:43]} 0-1


[Site "https://www.chess.com"]

[Event "Titled Tuesday Blitz April 05 Late 2022"]
[White "Gomez Dieguez, David"]
[Black "Ricaurte Lopez, Juan Carlos"]
[WhiteFideId "22223630"]
[BlackFideId "3600327"]
[WhiteElo "2115"]
[BlackElo "2209"]
[Result "0-1"]
[Round "08"]
[TimeControl "180+1"]
[Date "2022.04.06"]
[WhiteClock "0:00:09"]
[BlackClock "0:00:16"]

1. c4 {[%clk 0:03:00]}  e5 {[%clk 0:02:57]} 2. Nc3 {[%clk 0:02:59]}  Nf6 {[%clk 0:02:56]} 3. Nf3 {[%clk 0:02:59]}  Nc6 {[%clk 0:02:53]} 4. e3 {[%clk 0:02:59]}  a6 {[%clk 0:02:47]} 5. a3 {[%clk 0:02:51]}  d5 {[%clk 0:02:43]} 6. cxd5 {[%clk 0:02:50]}  Nxd5 {[%clk 0:02:43]} 7. Qc2 {[%clk 0:02:34]}  Be6 {[%clk 0:02:35]} 8. b4 {[%clk 0:02:23]}  Be7 {[%clk 0:02:29]} 9. Bb2 {[%clk 0:02:22]}  O-O {[%clk 0:02:27]} 10. Bd3 {[%clk 0:02:19]}  f5 {[%clk 0:02:16]} 11. Nxd5 {[%clk 0:02:15]}  Qxd5 {[%clk 0:02:12]} 12. Rc1 {[%clk 0:02:06]}  e4 {[%clk 0:02:02]} 13. Bc4 {[%clk 0:02:03]}  Qxc4 {[%clk 0:02:01]} 14. Qxc4 {[%clk 0:02:03]}  Bxc4 {[%clk 0:02:00]} 15. Rxc4 {[%clk 0:01:54]}  exf3 {[%clk 0:01:59]} 16. gxf3 {[%clk 0:01:53]}  Bf6 {[%clk 0:01:56]} 17. Bxf6 {[%clk 0:01:52]}  Rxf6 {[%clk 0:01:55]} 18. f4 {[%clk 0:01:52]}  Rd8 {[%clk 0:01:52]} 19. Ke2 {[%clk 0:01:50]}  Rfd6 {[%clk 0:01:51]} 20. d4 {[%clk 0:01:50]}  R8d7 {[%clk 0:01:39]} 21. Rg1 {[%clk 0:01:50]}  Nxd4+ {[%clk 0:01:31]} 22. exd4 {[%clk 0:01:45]}  Rxd4 {[%clk 0:01:30]} 23. Rgc1 {[%clk 0:01:32]}  c6 {[%clk 0:01:22]} 24. Rxd4 {[%clk 0:01:28]}  Rxd4 {[%clk 0:01:23]} 25. Ke3 {[%clk 0:01:28]}  Rd5 {[%clk 0:01:20]} 26. h4 {[%clk 0:01:23]}  Kf7 {[%clk 0:01:19]} 27. h5 {[%clk 0:01:23]}  a5 {[%clk 0:01:15]} 28. Rb1 {[%clk 0:01:16]}  axb4 {[%clk 0:01:13]} 29. Rxb4 {[%clk 0:01:12]}  b5 {[%clk 0:01:10]} 30. a4 {[%clk 0:01:10]}  bxa4 {[%clk 0:01:05]} 31. Rxa4 {[%clk 0:01:11]}  Rb5 {[%clk 0:01:02]} 32. Ra7+ {[%clk 0:01:04]}  Kf6 {[%clk 0:01:00]} 33. Ra6 {[%clk 0:00:59]}  Rc5 {[%clk 0:00:57]} 34. Kd4 {[%clk 0:00:59]}  Rc2 {[%clk 0:00:55]} 35. Ke3 {[%clk 0:00:56]}  g5 {[%clk 0:00:52]} 36. hxg6 {[%clk 0:00:54]}  hxg6 {[%clk 0:00:50]} 37. f3 {[%clk 0:00:51]}  g5 {[%clk 0:00:47]} 38. fxg5+ {[%clk 0:00:50]}  Kxg5 {[%clk 0:00:48]} 39. Kd3 {[%clk 0:00:37]}  Rc1 {[%clk 0:00:44]} 40. Kd2 {[%clk 0:00:36]}  Rc5 {[%clk 0:00:43]} 41. Ra4 {[%clk 0:00:28]}  f4 {[%clk 0:00:36]} 42. Kd3 {[%clk 0:00:24]}  Re5 {[%clk 0:00:35]} 43. Ra6 {[%clk 0:00:14]}  Re3+ {[%clk 0:00:33]} 44. Kd2 {[%clk 0:00:15]}  Rxf3 {[%clk 0:00:32]} 45. Rxc6 {[%clk 0:00:15]}  Re3 {[%clk 0:00:32]} 46. Rc8 {[%clk 0:00:14]}  Kg4 {[%clk 0:00:30]} 47. Rg8+ {[%clk 0:00:13]}  Kf3 {[%clk 0:00:30]} 48. Rf8 {[%clk 0:00:08]}  Re7 {[%clk 0:00:29]} 49. Rf6 {[%clk 0:00:07]}  Kg3 {[%clk 0:00:27]} 50. Rg6+ {[%clk 0:00:07]}  Kf2 {[%clk 0:00:26]} 51. Rf6 {[%clk 0:00:07]}  Rd7+ {[%clk 0:00:24]} 52. Kc3 {[%clk 0:00:07]}  f3 {[%clk 0:00:24]} 53. Rf8 {[%clk 0:00:06]}  Ke2 {[%clk 0:00:23]} 54. Re8+ {[%clk 0:00:06]}  Kf1 {[%clk 0:00:22]} 55. Rf8 {[%clk 0:00:07]}  f2 {[%clk 0:00:21]} 56. Kc2 {[%clk 0:00:08]}  Rd5 {[%clk 0:00:19]} 57. Kc1 {[%clk 0:00:06]}  Ke2 {[%clk 0:00:18]} 58. Re8+ {[%clk 0:00:06]}  Kf3 {[%clk 0:00:18]} 59. Rf8+ {[%clk 0:00:06]}  Ke3 {[%clk 0:00:18]} 60. Re8+ {[%clk 0:00:07]}  Kf4 {[%clk 0:00:17]} 61. Rf8+ {[%clk 0:00:08]}  Rf5 {[%clk 0:00:17]} 62. Rxf5+ {[%clk 0:00:08]}  Kxf5 {[%clk 0:00:17]} 63. Kd2 {[%clk 0:00:09]}  f1=Q {[%clk 0:00:16]} 0-1


[Site "https://www.chess.com"]

[Event "Titled Tuesday Blitz April 05 Late 2022"]
[White "Harish, Neeraj"]
[Black "Quirke, Jeffrey"]
[WhiteFideId "30958130"]
[BlackFideId "2013029"]
[WhiteElo "1574"]
[BlackElo "2241"]
[Result "0-1"]
[Round "08"]
[TimeControl "180+1"]
[Date "2022.04.06"]
[WhiteClock "0:01:05"]
[BlackClock "0:00:15"]

1. e4 {[%clk 0:03:00]}  c5 {[%clk 0:02:59]} 2. Nf3 {[%clk 0:02:58]}  e6 {[%clk 0:02:56]} 3. d4 {[%clk 0:02:57]}  cxd4 {[%clk 0:02:55]} 4. Nxd4 {[%clk 0:02:57]}  a6 {[%clk 0:02:54]} 5. Bd3 {[%clk 0:02:50]}  Bc5 {[%clk 0:02:53]} 6. Nb3 {[%clk 0:02:50]}  Ba7 {[%clk 0:02:53]} 7. Nc3 {[%clk 0:02:43]}  Nc6 {[%clk 0:02:48]} 8. Qg4 {[%clk 0:02:37]}  Nf6 {[%clk 0:02:47]} 9. Qxg7 {[%clk 0:02:30]}  Rg8 {[%clk 0:02:46]} 10. Qh6 {[%clk 0:02:30]}  Bxf2+ {[%clk 0:02:45]} 11. Kd1 {[%clk 0:02:23]}  Ne5 {[%clk 0:01:35]} 12. Qf4 {[%clk 0:01:46]}  Neg4 {[%clk 0:01:20]} 13. h3 {[%clk 0:01:41]}  Nh5 {[%clk 0:00:57]} 14. Qf3 {[%clk 0:01:34]}  Ng3 {[%clk 0:00:42]} 15. hxg4 {[%clk 0:01:22]}  Nxh1 {[%clk 0:00:42]} 16. Bf4 {[%clk 0:01:16]}  Qh4 {[%clk 0:00:29]} 17. Ke2 {[%clk 0:01:09]}  Ng3+ {[%clk 0:00:19]} 18. Bxg3 {[%clk 0:01:07]}  Bxg3 {[%clk 0:00:18]} 19. Rf1 {[%clk 0:01:05]}  Qxg4 {[%clk 0:00:15]} 0-1


[Site "https://www.chess.com"]

[Event "Titled Tuesday Blitz April 05 Late 2022"]
[White "Hernandez Bermudez, Ulises Eduardo"]
[Black "Burke, Paul"]
[WhiteFideId "3902510"]
[BlackFideId "2605767"]
[WhiteElo "2056"]
[BlackElo "1873"]
[Result "0-1"]
[Round "08"]
[TimeControl "180+1"]
[Date "2022.04.06"]
[WhiteClock "0:00:03"]
[BlackClock "0:00:48"]

1. e4 {[%clk 0:02:59]}  e5 {[%clk 0:02:59]} 2. Nf3 {[%clk 0:02:58]}  Nc6 {[%clk 0:02:59]} 3. Bb5 {[%clk 0:02:58]}  f5 {[%clk 0:02:58]} 4. Nc3 {[%clk 0:02:54]}  Nf6 {[%clk 0:02:58]} 5. d3 {[%clk 0:02:48]}  Be7 {[%clk 0:02:57]} 6. O-O {[%clk 0:02:45]}  O-O {[%clk 0:02:57]} 7. Re1 {[%clk 0:02:39]}  d6 {[%clk 0:02:57]} 8. Bc4+ {[%clk 0:02:34]}  Kh8 {[%clk 0:02:55]} 9. a3 {[%clk 0:02:29]}  f4 {[%clk 0:02:46]} 10. d4 {[%clk 0:02:21]}  Bg4 {[%clk 0:02:45]} 11. dxe5 {[%clk 0:02:20]}  Bxf3 {[%clk 0:02:44]} 12. Qxf3 {[%clk 0:02:09]}  Nxe5 {[%clk 0:02:44]} 13. Qe2 {[%clk 0:02:06]}  Nxc4 {[%clk 0:02:43]} 14. Qxc4 {[%clk 0:02:01]}  Ng4 {[%clk 0:02:43]} 15. f3 {[%clk 0:01:54]}  Ne5 {[%clk 0:02:43]} 16. Qe2 {[%clk 0:01:48]}  Bh4 {[%clk 0:02:42]} 17. Rd1 {[%clk 0:01:45]}  c6 {[%clk 0:02:38]} 18. b4 {[%clk 0:01:41]}  Qf6 {[%clk 0:02:38]} 19. Bb2 {[%clk 0:01:40]}  Rad8 {[%clk 0:02:33]} 20. Rd2 {[%clk 0:01:34]}  g5 {[%clk 0:02:18]} 21. h3 {[%clk 0:01:20]}  h5 {[%clk 0:02:16]} 22. Nd1 {[%clk 0:01:10]}  g4 {[%clk 0:02:13]} 23. Bxe5 {[%clk 0:00:56]}  Qxe5 {[%clk 0:02:12]} 24. c3 {[%clk 0:00:55]}  Bg3 {[%clk 0:01:49]} 25. hxg4 {[%clk 0:00:51]}  Qg5 {[%clk 0:01:45]} 26. Nf2 {[%clk 0:00:28]}  Qh4 {[%clk 0:01:45]} 27. Qd3 {[%clk 0:00:15]}  hxg4 {[%clk 0:01:36]} 28. Nxg4 {[%clk 0:00:13]}  Rg8 {[%clk 0:01:29]} 29. Qd4+ {[%clk 0:00:07]}  Rg7 {[%clk 0:01:20]} 30. Qf6 {[%clk 0:00:05]}  Rd7 {[%clk 0:01:12]} 31. Qxh4+ {[%clk 0:00:03]}  Bxh4 {[%clk 0:01:11]} 32. Rad1 {[%clk 0:00:04]}  Be7 {[%clk 0:01:06]} 33. Ne5 {[%clk 0:00:03]}  Rc7 {[%clk 0:01:02]} 34. Nc4 {[%clk 0:00:03]}  d5 {[%clk 0:00:57]} 35. exd5 {[%clk 0:00:03]}  cxd5 {[%clk 0:00:57]} 36. Ne5 {[%clk 0:00:03]}  Rxc3 {[%clk 0:00:55]} 37. Rxd5 {[%clk 0:00:04]}  Rxa3 {[%clk 0:00:54]} 38. Rd7 {[%clk 0:00:03]}  Bxb4 {[%clk 0:00:53]} 39. Rxg7 {[%clk 0:00:02]}  Kxg7 {[%clk 0:00:53]} 40. Rd7+ {[%clk 0:00:03]}  Kf6 {[%clk 0:00:53]} 41. Nd3 {[%clk 0:00:03]}  Ra1+ {[%clk 0:00:51]} 42. Kf2 {[%clk 0:00:03]}  Ba5 {[%clk 0:00:49]} 43. Rxb7 {[%clk 0:00:03]}  Bb6+ {[%clk 0:00:48]} 0-1


[Site "https://www.chess.com"]

[Event "Titled Tuesday Blitz April 05 Late 2022"]
[White "Iskusnyh, Sergei"]
[Black "Al-Tarboush, Ward"]
[WhiteFideId "4120027"]
[BlackFideId "7601450"]
[WhiteElo "2588"]
[BlackElo "2507"]
[Result "1-0"]
[Round "08"]
[TimeControl "180+1"]
[Date "2022.04.06"]
[WhiteClock "0:01:22"]
[BlackClock "0:01:49"]

1. d4 {[%clk 0:02:07]}  d5 {[%clk 0:02:59]} 2. c4 {[%clk 0:02:06]}  c6 {[%clk 0:02:59]} 3. Nf3 {[%clk 0:02:06]}  Nf6 {[%clk 0:02:59]} 4. e3 {[%clk 0:02:06]}  e6 {[%clk 0:02:59]} 5. Bd3 {[%clk 0:02:06]}  Nbd7 {[%clk 0:02:57]} 6. b3 {[%clk 0:02:06]}  c5 {[%clk 0:02:56]} 7. O-O {[%clk 0:02:05]}  cxd4 {[%clk 0:02:57]} 8. exd4 {[%clk 0:02:05]}  Bd6 {[%clk 0:02:57]} 9. c5 {[%clk 0:02:04]}  Bc7 {[%clk 0:02:57]} 10. Bb2 {[%clk 0:02:05]}  O-O {[%clk 0:02:58]} 11. Nbd2 {[%clk 0:02:04]}  b6 {[%clk 0:02:58]} 12. b4 {[%clk 0:02:04]}  bxc5 {[%clk 0:02:58]} 13. bxc5 {[%clk 0:02:04]}  Bb7 {[%clk 0:02:56]} 14. Rb1 {[%clk 0:02:01]}  Bc6 {[%clk 0:02:57]} 15. Qc2 {[%clk 0:02:00]}  Rb8 {[%clk 0:02:56]} 16. Bc3 {[%clk 0:01:58]}  Re8 {[%clk 0:02:55]} 17. Ne5 {[%clk 0:01:53]}  Nxe5 {[%clk 0:02:55]} 18. dxe5 {[%clk 0:01:53]}  Ne4 {[%clk 0:02:54]} 19. Nxe4 {[%clk 0:01:51]}  dxe4 {[%clk 0:02:55]} 20. Bxe4 {[%clk 0:01:51]}  Bxe4 {[%clk 0:02:56]} 21. Qxe4 {[%clk 0:01:51]}  Qe7 {[%clk 0:02:48]} 22. Qc6 {[%clk 0:01:43]}  Rbc8 {[%clk 0:02:45]} 23. Rb7 {[%clk 0:01:42]}  Red8 {[%clk 0:02:33]} 24. Ba5 {[%clk 0:01:36]}  Rd7 {[%clk 0:02:33]} 25. g3 {[%clk 0:01:29]}  Qd8 {[%clk 0:01:53]} 26. Rxa7 {[%clk 0:01:26]}  Re7 {[%clk 0:01:48]} 27. Bxc7 {[%clk 0:01:24]}  Rexc7 {[%clk 0:01:48]} 28. Rxc7 {[%clk 0:01:24]}  Rxc7 {[%clk 0:01:48]} 29. Qd6 {[%clk 0:01:23]}  Qc8 {[%clk 0:01:48]} 30. Rd1 {[%clk 0:01:22]}  Rd7 {[%clk 0:01:49]} 31. Qxd7 {[%clk 0:01:22]} 1-0


[Site "https://www.chess.com"]

[Event "Titled Tuesday Blitz April 05 Late 2022"]
[White "Janturin, Artur"]
[Black "Brizzi, Milagros Tatiana"]
[WhiteFideId "4130022"]
[BlackFideId "128350"]
[WhiteElo "2340"]
[BlackElo "2182"]
[Result "1-0"]
[Round "08"]
[TimeControl "180+1"]
[Date "2022.04.06"]
[WhiteClock "0:00:28"]
[BlackClock "0:00:12"]

1. e4 {[%clk 0:03:00]}  c6 {[%clk 0:02:58]} 2. d4 {[%clk 0:02:58]}  d5 {[%clk 0:02:58]} 3. exd5 {[%clk 0:02:58]}  cxd5 {[%clk 0:02:57]} 4. Bd3 {[%clk 0:02:58]}  Nc6 {[%clk 0:02:53]} 5. c3 {[%clk 0:02:58]}  Qc7 {[%clk 0:02:51]} 6. Ne2 {[%clk 0:02:54]}  Bg4 {[%clk 0:02:39]} 7. f3 {[%clk 0:02:45]}  Bd7 {[%clk 0:02:27]} 8. Bf4 {[%clk 0:02:44]}  e5 {[%clk 0:02:25]} 9. dxe5 {[%clk 0:02:35]}  Nxe5 {[%clk 0:02:19]} 10. O-O {[%clk 0:02:12]}  Bd6 {[%clk 0:02:19]} 11. Nd4 {[%clk 0:02:02]}  Nf6 {[%clk 0:02:08]} 12. Na3 {[%clk 0:01:38]}  a6 {[%clk 0:02:05]} 13. Nac2 {[%clk 0:01:25]}  O-O {[%clk 0:01:54]} 14. Kh1 {[%clk 0:01:18]}  Rfe8 {[%clk 0:01:37]} 15. Nf5 {[%clk 0:01:07]}  Bxf5 {[%clk 0:01:12]} 16. Bxf5 {[%clk 0:01:08]}  Rad8 {[%clk 0:01:04]} 17. Nd4 {[%clk 0:01:04]}  Nh5 {[%clk 0:00:53]} 18. Bg5 {[%clk 0:00:51]}  h6 {[%clk 0:00:47]} 19. f4 {[%clk 0:00:38]}  hxg5 {[%clk 0:00:18]} 20. fxe5 {[%clk 0:00:37]}  g6 {[%clk 0:00:16]} 21. exd6 {[%clk 0:00:35]}  Qxd6 {[%clk 0:00:17]} 22. Bg4 {[%clk 0:00:31]}  Nf4 {[%clk 0:00:15]} 23. Bf3 {[%clk 0:00:29]}  Kg7 {[%clk 0:00:14]} 24. g3 {[%clk 0:00:28]}  Nh5 {[%clk 0:00:12]} 25. Bxh5 {[%clk 0:00:28]}  gxh5 {[%clk 0:00:12]} 26. Nf5+ {[%clk 0:00:28]} 1-0


[Site "https://www.chess.com"]

[Event "Titled Tuesday Blitz April 05 Late 2022"]
[White "Kazakouski, Valery"]
[Black "Xiong, Jeffery"]
[WhiteFideId "13507443"]
[BlackFideId "2047640"]
[WhiteElo "2524"]
[BlackElo "2727"]
[Result "0-1"]
[Round "08"]
[TimeControl "180+1"]
[Date "2022.04.05"]
[WhiteClock "0:00:02"]
[BlackClock "0:00:22"]

1. d4 {[%clk 0:02:43]}  Nf6 {[%clk 0:02:56]} 2. c4 {[%clk 0:02:41]}  c5 {[%clk 0:02:57]} 3. d5 {[%clk 0:02:41]}  b5 {[%clk 0:02:57]} 4. cxb5 {[%clk 0:02:42]}  a6 {[%clk 0:02:58]} 5. e3 {[%clk 0:02:43]}  g6 {[%clk 0:02:57]} 6. Nc3 {[%clk 0:02:43]}  Bg7 {[%clk 0:02:58]} 7. Nf3 {[%clk 0:02:43]}  O-O {[%clk 0:02:58]} 8. a4 {[%clk 0:02:44]}  e6 {[%clk 0:02:57]} 9. Ra3 {[%clk 0:02:38]}  Bb7 {[%clk 0:02:54]} 10. dxe6 {[%clk 0:02:37]}  fxe6 {[%clk 0:02:55]} 11. Be2 {[%clk 0:02:37]}  axb5 {[%clk 0:02:54]} 12. Bxb5 {[%clk 0:02:33]}  d5 {[%clk 0:02:54]} 13. O-O {[%clk 0:02:33]}  Nbd7 {[%clk 0:02:54]} 14. Ne2 {[%clk 0:02:04]}  Qe7 {[%clk 0:02:50]} 15. b3 {[%clk 0:01:49]}  e5 {[%clk 0:02:47]} 16. Bb2 {[%clk 0:01:44]}  d4 {[%clk 0:01:53]} 17. Ng3 {[%clk 0:01:44]}  Kh8 {[%clk 0:01:34]} 18. a5 {[%clk 0:01:40]}  Ng4 {[%clk 0:01:32]} 19. e4 {[%clk 0:01:37]}  Nb8 {[%clk 0:01:24]} 20. h3 {[%clk 0:01:28]}  Nf6 {[%clk 0:01:24]} 21. Nd2 {[%clk 0:01:28]}  Ba6 {[%clk 0:01:18]} 22. Qe2 {[%clk 0:01:27]}  Qb7 {[%clk 0:01:16]} 23. Bxa6 {[%clk 0:01:25]}  Rxa6 {[%clk 0:01:17]} 24. Nc4 {[%clk 0:01:24]}  Nc6 {[%clk 0:01:17]} 25. Bc1 {[%clk 0:01:19]}  Nd7 {[%clk 0:01:08]} 26. Nd6 {[%clk 0:01:05]}  Qa8 {[%clk 0:01:07]} 27. Qc4 {[%clk 0:01:02]}  Nd8 {[%clk 0:01:03]} 28. Nb5 {[%clk 0:00:46]}  Rxa5 {[%clk 0:01:03]} 29. Nc7 {[%clk 0:00:28]}  Qa7 {[%clk 0:01:03]} 30. Rxa5 {[%clk 0:00:27]}  Qxa5 {[%clk 0:01:04]} 31. Ne6 {[%clk 0:00:28]}  Nxe6 {[%clk 0:00:54]} 32. Qxe6 {[%clk 0:00:29]}  Qb5 {[%clk 0:00:54]} 33. Bg5 {[%clk 0:00:28]}  Rb8 {[%clk 0:00:50]} 34. Ra1 {[%clk 0:00:26]}  Nf8 {[%clk 0:00:50]} 35. Qd6 {[%clk 0:00:24]}  Qb6 {[%clk 0:00:47]} 36. Qxb6 {[%clk 0:00:19]}  Rxb6 {[%clk 0:00:48]} 37. Be7 {[%clk 0:00:19]}  Rxb3 {[%clk 0:00:35]} 38. Bxc5 {[%clk 0:00:18]}  h5 {[%clk 0:00:31]} 39. Bxf8 {[%clk 0:00:14]}  Bxf8 {[%clk 0:00:31]} 40. Rd1 {[%clk 0:00:14]}  Bh6 {[%clk 0:00:27]} 41. Kf1 {[%clk 0:00:09]}  Kg7 {[%clk 0:00:28]} 42. Ke2 {[%clk 0:00:07]}  Kf6 {[%clk 0:00:28]} 43. Nf1 {[%clk 0:00:06]}  Rb2+ {[%clk 0:00:27]} 44. Kf3 {[%clk 0:00:04]}  Ke6 {[%clk 0:00:27]} 45. Ng3 {[%clk 0:00:03]}  Kd6 {[%clk 0:00:22]} 46. Ne2 {[%clk 0:00:02]}  Rb3+ {[%clk 0:00:22]} 0-1


[Site "https://www.chess.com"]

[Event "Titled Tuesday Blitz April 05 Late 2022"]
[White "Kohler, Aran"]
[Black "Quintiliano Pinto, Renato R."]
[WhiteFideId "1002856"]
[BlackFideId "2117568"]
[WhiteElo "2335"]
[BlackElo "2721"]
[Result "0-1"]
[Round "08"]
[TimeControl "180+1"]
[Date "2022.04.06"]
[WhiteClock "0:00:09"]
[BlackClock "0:00:58"]

1. d4 {[%clk 0:02:58]}  Nf6 {[%clk 0:02:55]} 2. Nf3 {[%clk 0:02:58]}  e6 {[%clk 0:02:56]} 3. Bg5 {[%clk 0:02:57]}  b6 {[%clk 0:02:55]} 4. e3 {[%clk 0:02:56]}  Bb7 {[%clk 0:02:56]} 5. Nbd2 {[%clk 0:02:57]}  Be7 {[%clk 0:02:56]} 6. Bd3 {[%clk 0:02:57]}  h6 {[%clk 0:02:55]} 7. Bxf6 {[%clk 0:02:54]}  Bxf6 {[%clk 0:02:55]} 8. c3 {[%clk 0:02:55]}  O-O {[%clk 0:02:55]} 9. h4 {[%clk 0:02:51]}  d6 {[%clk 0:02:50]} 10. Qe2 {[%clk 0:02:51]}  Nd7 {[%clk 0:02:49]} 11. O-O-O {[%clk 0:02:52]}  e5 {[%clk 0:02:42]} 12. dxe5 {[%clk 0:02:35]}  Nxe5 {[%clk 0:02:40]} 13. Nxe5 {[%clk 0:02:33]}  Bxe5 {[%clk 0:02:41]} 14. f4 {[%clk 0:02:30]}  Bf6 {[%clk 0:02:40]} 15. Rh3 {[%clk 0:02:21]}  Re8 {[%clk 0:02:38]} 16. g4 {[%clk 0:02:18]}  g6 {[%clk 0:02:14]} 17. g5 {[%clk 0:02:18]}  hxg5 {[%clk 0:02:14]} 18. hxg5 {[%clk 0:02:18]}  Bg7 {[%clk 0:02:14]} 19. Qf2 {[%clk 0:02:01]}  Qd7 {[%clk 0:02:00]} 20. Qh4 {[%clk 0:02:00]}  Qa4 {[%clk 0:01:54]} 21. Qh7+ {[%clk 0:01:18]}  Kf8 {[%clk 0:01:53]} 22. Bxg6 {[%clk 0:01:12]}  fxg6 {[%clk 0:01:50]} 23. Qxg6 {[%clk 0:01:11]}  Qxa2 {[%clk 0:01:30]} 24. f5 {[%clk 0:00:43]}  Qf7 {[%clk 0:01:19]} 25. Qxf7+ {[%clk 0:00:41]}  Kxf7 {[%clk 0:01:20]} 26. f6 {[%clk 0:00:41]}  Rh8 {[%clk 0:01:17]} 27. Rxh8 {[%clk 0:00:38]}  Bxh8 {[%clk 0:01:17]} 28. e4 {[%clk 0:00:35]}  Kg6 {[%clk 0:01:12]} 29. Rg1 {[%clk 0:00:32]}  Re8 {[%clk 0:01:12]} 30. Nf3 {[%clk 0:00:27]}  Bxe4 {[%clk 0:01:06]} 31. Nh4+ {[%clk 0:00:27]}  Kh5 {[%clk 0:01:06]} 32. f7 {[%clk 0:00:26]}  Rf8 {[%clk 0:01:04]} 33. g6 {[%clk 0:00:21]}  Kxh4 {[%clk 0:01:02]} 34. g7 {[%clk 0:00:21]}  Bxg7 {[%clk 0:01:03]} 35. Rxg7 {[%clk 0:00:21]}  Bd5 {[%clk 0:01:03]} 36. Rh7+ {[%clk 0:00:18]}  Kg5 {[%clk 0:01:03]} 37. Rg7+ {[%clk 0:00:15]}  Kf6 {[%clk 0:01:01]} 38. Rg1 {[%clk 0:00:11]}  Bxf7 {[%clk 0:01:00]} 39. Kb1 {[%clk 0:00:09]}  Rg8 {[%clk 0:00:59]} 40. Ka1 {[%clk 0:00:09]}  Rxg1# {[%clk 0:00:58]} 0-1


[Site "https://www.chess.com"]